bitfinex-derivatives/quotes_BTCF0:USTF0_20260119
["timestamp","ask_amount","ask_price","bid_price","bid_amount"]
[1768830790245,0.09676,93083.0,93071.0,0.01075]
[1768830790742,0.09676,93083.0,93073.0,0.01075]
[1768830792057,0.09676,93083.0,93070.0,0.01075]
[1768830793457,0.09676,93083.0,93071.0,0.01075]
[1768830794456,0.09676,93083.0,93067.0,0.09059346]
[1768830794751,0.09676,93083.0,93065.0,0.06655434]
[1768830794961,0.09510072,93085.0,93067.0,0.01075]
[1768830795156,0.09510072,93085.0,93070.0,0.01075]
[1768830795356,0.18021731,93080.0,93070.0,0.01075]
[1768830796460,0.09510072,93085.0,93070.0,0.01075]
[1768830796653,0.18021731,93080.0,93070.0,0.01075]
[1768830796845,0.09510072,93085.0,93071.0,0.01075]
[1768830797049,0.18021731,93080.0,93071.0,0.01075]
[1768830797360,0.18021731,93080.0,93072.0,0.01075]
[1768830797561,0.09676,93086.0,93075.0,0.010749]
[1768830797857,0.00236346,93084.0,93072.0,0.01075]
[1768830799257,0.00236346,93084.0,93074.0,0.01075]
[1768830799760,0.00236346,93084.0,93077.0,0.010749]
[1768830800162,0.00236346,93084.0,93072.0,0.06655434]
[1768830800666,0.00236346,93084.0,93075.0,0.010749]
[1768830801570,0.00236346,93084.0,93072.0,0.01075]
[1768830801766,0.00236346,93084.0,93071.0,0.01075]
[1768830802071,0.18021731,93081.0,93061.0,0.10743504]
[1768830802259,0.09510072,93080.0,93065.0,0.09676]
[1768830802765,0.09510072,93080.0,93066.0,0.10743735]
[1768830803170,0.09510072,93080.0,93065.0,0.107511]
[1768830803362,0.10584972,93080.0,93065.0,0.107511]
[1768830804070,0.09510072,93080.0,93066.0,0.01075]
[1768830806568,0.09510072,93080.0,93065.0,0.09676]
[1768830807976,0.09510072,93080.0,93066.0,0.01075]
[1768830808871,0.010749,93079.0,93065.0,0.09676]
[1768830809075,0.09510072,93080.0,93065.0,0.107511]
[1768830809769,0.010749,93079.0,93065.0,0.09676]
[1768830809969,0.09510072,93080.0,93065.0,0.09676]
[1768830811476,0.010749,93077.0,93065.0,0.09676]
[1768830814272,0.18021731,93075.0,93055.0,0.08802814]
[1768830814472,0.18021731,93070.0,93054.0,0.09676]
[1768830816985,0.10890363,93071.0,93054.0,0.09676]
[1768830818485,0.01075,93069.0,93054.0,0.09676]
[1768830820992,0.09815363,93071.0,93054.0,0.09676]
[1768830821178,0.09815363,93071.0,93054.0,0.107512]
[1768830821487,0.01075,93070.0,93054.0,0.107512]
[1768830822390,0.09815363,93071.0,93054.0,0.09676]
[1768830822688,0.09815363,93071.0,93055.0,0.06347458]
[1768830822689,0.00016113,93071.0,93055.0,0.06347458]
[1768830822982,0.01075,93070.0,93055.0,0.07422658]
[1768830823388,0.01075,93070.0,93055.0,0.06347458]
[1768830827685,0.01075,93068.0,93055.0,0.06347458]
[1768830828692,0.01075,93068.0,93054.0,0.09324158]
[1768830829284,0.01091113,93071.0,93054.0,0.09324158]
[1768830829495,0.01075,93068.0,93054.0,0.15671616]
[1768830830593,0.01075,93070.0,93054.0,0.15671616]
[1768830830796,0.01075,93068.0,93054.0,0.15671616]
[1768830831795,0.01075,93070.0,93054.0,0.15671616]
[1768830832491,0.01075,93069.0,93054.0,0.15671616]
[1768830832698,0.00016113,93071.0,93054.0,0.15671616]
[1768830833396,0.01075,93068.0,93054.0,0.15671616]
[1768830836994,0.01075,93068.0,93054.0,0.10399358]
[1768830837295,0.01075,93070.0,93055.0,0.06696294]
[1768830837496,0.01075,93070.0,93056.0,0.06696294]
[1768830839595,0.01075,93069.0,93056.0,0.06696294]
[1768830840289,0.00016113,93071.0,93058.0,0.16577527]
[1768830840486,0.00016113,93071.0,93061.0,0.06696294]
[1768830840684,0.09676,93075.0,93063.0,0.16577527]
[1768830842188,0.09676,93075.0,93063.0,0.05827527]
[1768830844402,0.02346017,93074.0,93060.0,0.07771394]
[1768830844601,0.09676,93075.0,93063.0,0.06696294]
[1768830844803,0.02346052,93074.0,93064.0,0.06696294]
[1768830844999,0.010749,93083.0,93068.0,0.09881233]
[1768830845198,0.010749,93081.0,93069.0,0.06696294]
[1768830845402,0.010749,93079.0,93069.0,0.06696294]
[1768830845596,0.02345997,93078.0,93069.0,0.06696294]
[1768830845903,0.02345997,93077.0,93069.0,0.06696294]
[1768830846098,0.02345997,93076.0,93069.0,0.06696294]
[1768830846297,0.02345997,93075.0,93068.0,0.09881233]
[1768830846498,0.010749,93079.0,93068.0,0.09881233]
[1768830846706,0.02345458,93078.0,93068.0,0.09881233]
[1768830846901,0.02345458,93077.0,93068.0,0.09881233]
[1768830847102,0.02345458,93076.0,93068.0,0.09881233]
[1768830847304,0.02345458,93075.0,93069.0,0.06696294]
[1768830847495,0.107509,93082.0,93069.0,0.06696294]
[1768830847697,0.023454,93081.0,93069.0,0.06696294]
[1768830847897,0.023454,93080.0,93069.0,0.06696294]
[1768830848096,0.023454,93079.0,93069.0,0.06696294]
[1768830848297,0.023454,93078.0,93069.0,0.06696294]
[1768830848501,0.023454,93077.0,93069.0,0.06696294]
[1768830848706,0.023454,93076.0,93069.0,0.06696294]
[1768830849005,0.09676,93080.0,93069.0,0.06696294]
[1768830849205,0.02339932,93079.0,93069.0,0.06696294]
[1768830849401,0.02339932,93078.0,93069.0,0.06696294]
[1768830849607,0.02339932,93077.0,93069.0,0.06696294]
[1768830849797,0.02339932,93076.0,93069.0,0.06696294]
[1768830849997,0.09676,93080.0,93069.0,0.06696294]
[1768830850295,0.02339888,93079.0,93069.0,0.06696294]
[1768830850607,0.02339888,93078.0,93069.0,0.06696294]
[1768830850907,0.02339888,93077.0,93069.0,0.06696294]
[1768830851103,0.02339888,93076.0,93069.0,0.06696294]
[1768830851303,0.09676,93080.0,93069.0,0.06696294]
[1768830851606,0.02339799,93079.0,93069.0,0.06696294]
[1768830851805,0.02339799,93078.0,93069.0,0.06696294]
[1768830852005,0.02339799,93077.0,93069.0,0.06696294]
[1768830852207,0.02339799,93076.0,93069.0,0.06696294]
[1768830852505,0.09676,93080.0,93069.0,0.06696294]
[1768830852807,0.02339763,93079.0,93069.0,0.06696294]
[1768830853106,0.09676,93080.0,93069.0,0.06696294]
[1768830853308,0.02339731,93079.0,93069.0,0.06696294]
[1768830853606,0.02339731,93078.0,93069.0,0.06696294]
[1768830853804,0.02339731,93077.0,93068.0,0.09881233]
[1768830854004,0.02339731,93076.0,93068.0,0.09881233]
[1768830854199,0.107509,93080.0,93068.0,0.09881233]
[1768830854408,0.02339705,93079.0,93068.0,0.09881233]
[1768830854603,0.02339705,93078.0,93068.0,0.09881233]
[1768830854803,0.02339705,93077.0,93068.0,0.09881233]
[1768830855007,0.02339705,93076.0,93068.0,0.09881233]
[1768830855209,0.09676,93080.0,93068.0,0.09881233]
[1768830855411,0.02339683,93079.0,93068.0,0.09881233]
[1768830855704,0.02339683,93078.0,93068.0,0.09881233]
[1768830855905,0.02339683,93077.0,93068.0,0.09881233]
[1768830856105,0.02339683,93076.0,93068.0,0.09881233]
[1768830856305,0.107509,93080.0,93068.0,0.09881233]
[1768830856504,0.02336077,93079.0,93068.0,0.09881233]
[1768830856703,0.02336077,93078.0,93068.0,0.09881233]
[1768830856903,0.02336077,93077.0,93068.0,0.09881233]
[1768830857117,0.02336077,93076.0,93068.0,0.16577527]
[1768830857315,0.09676,93080.0,93068.0,0.16577527]
[1768830857610,0.02336065,93079.0,93068.0,0.16577527]
[1768830857800,0.02336065,93078.0,93068.0,0.16577527]
[1768830858000,0.02336065,93077.0,93068.0,0.16577527]
[1768830858202,0.02336065,93076.0,93068.0,0.16577527]
[1768830858501,0.010749,93078.0,93068.0,0.16577527]
[1768830858703,0.0233606,93077.0,93068.0,0.16577527]
[1768830858907,0.0233606,93076.0,93068.0,0.16577527]
[1768830859108,0.010749,93078.0,93068.0,0.16577527]
[1768830859310,0.0233606,93077.0,93068.0,0.16577527]
[1768830859505,0.0233606,93076.0,93068.0,0.16577527]
[1768830859705,0.010749,93078.0,93068.0,0.16577527]
[1768830859905,0.0233606,93077.0,93068.0,0.16577527]
[1768830860109,0.0233606,93076.0,93068.0,0.16577527]
[1768830860305,0.010749,93078.0,93068.0,0.16577527]
[1768830860505,0.02336066,93077.0,93068.0,0.16577527]
[1768830860709,0.02336066,93076.0,93068.0,0.16577527]
[1768830860909,0.010749,93078.0,93068.0,0.16577527]
[1768830861119,0.02336066,93077.0,93068.0,0.16577527]
[1768830861417,0.02336066,93076.0,93068.0,0.16577527]
[1768830861715,0.010749,93077.0,93068.0,0.16577527]
[1768830861909,0.02336074,93076.0,93068.0,0.16577527]
[1768830862102,0.010749,93077.0,93068.0,0.16577527]
[1768830862301,0.02336092,93076.0,93068.0,0.16577527]
[1768830862497,0.010749,93077.0,93068.0,0.16577527]
[1768830862702,0.02336092,93076.0,93068.0,0.16577527]
[1768830862902,0.010749,93077.0,93068.0,0.16577527]
[1768830863110,0.02336092,93076.0,93068.0,0.16577527]
[1768830863311,0.010749,93077.0,93068.0,0.16577527]
[1768830863517,0.02336113,93076.0,93068.0,0.16577527]
[1768830863811,0.010749,93077.0,93068.0,0.16577527]
[1768830864018,0.02336113,93076.0,93068.0,0.16577527]
[1768830864208,0.010749,93077.0,93068.0,0.16577527]
[1768830864506,0.02336137,93076.0,93068.0,0.16577527]
[1768830864706,0.010749,93077.0,93068.0,0.16577527]
[1768830864907,0.02336137,93076.0,93068.0,0.16577527]
[1768830865109,0.010749,93079.0,93068.0,0.16577527]
[1768830865313,0.02336167,93078.0,93068.0,0.16577527]
[1768830865512,0.02336167,93077.0,93068.0,0.16577527]
[1768830865810,0.02336167,93076.0,93068.0,0.16577527]
[1768830866018,0.09676,93080.0,93068.0,0.16577527]
[1768830866315,0.02336174,93079.0,93069.0,0.06382228]
[1768830866514,0.02336174,93078.0,93069.0,0.06382228]
[1768830866698,0.02336174,93077.0,93069.0,0.06382228]
[1768830866901,0.02336174,93076.0,93069.0,0.06382228]
[1768830867117,0.107509,93080.0,93069.0,0.06382228]
[1768830867308,0.02336265,93079.0,93069.0,0.06382228]
[1768830867611,0.02336265,93078.0,93069.0,0.06382228]
[1768830867811,0.02336265,93077.0,93069.0,0.06382228]
[1768830868016,0.02336265,93076.0,93069.0,0.06382228]
[1768830868209,0.02334708,93075.0,93065.0,0.06382228]
[1768830868418,0.01075,93071.0,93061.0,0.06382228]
[1768830869714,0.01075,93071.0,93057.0,0.09542968]
[1768830870109,0.01075,93071.0,93057.0,0.15925196]
[1768830870309,0.05201035,93077.0,93058.0,0.06382228]
[1768830870510,0.05197144,93074.0,93055.0,0.09676]
[1768830870918,0.05197144,93074.0,93055.0,0.16058228]
[1768830871121,0.05175174,93073.0,93055.0,0.09676]
[1768830871422,0.09128021,93075.0,93055.0,0.16058228]
[1768830871714,0.02334783,93074.0,93055.0,0.16058228]
[1768830871920,0.09128021,93075.0,93055.0,0.16058228]
[1768830872118,0.02334783,93074.0,93055.0,0.16058228]
[1768830872307,0.09128021,93075.0,93055.0,0.16058228]
[1768830872506,0.01075,93071.0,93055.0,0.16058228]
[1768830872919,0.01075,93073.0,93055.0,0.16058228]
[1768830873119,0.01075,93073.0,93056.0,0.15925196]
[1768830873320,0.01075,93073.0,93057.0,0.06382228]
[1768830874222,0.01075,93073.0,93058.0,0.06382228]
[1768830877821,0.05146489,93079.0,93060.0,0.07457328]
[1768830878121,0.02338161,93078.0,93060.0,0.07457328]
[1768830878417,0.01075,93074.0,93060.0,0.06382228]
[1768830878622,0.05146489,93079.0,93060.0,0.06382228]
[1768830878821,0.01075,93073.0,93060.0,0.06382228]
[1768830879022,0.18031258,93070.0,93060.0,0.06382228]
[1768830881725,0.18031258,93070.0,93058.0,0.09542968]
[1768830887229,0.10751,93073.0,93058.0,0.09542968]
[1768830887426,0.18031258,93070.0,93058.0,0.09542968]
[1768830888730,0.18031258,93070.0,93058.0,0.10618068]
[1768830888935,0.18031258,93070.0,93058.0,0.17038298]
[1768830889432,0.18031258,93070.0,93058.0,0.15963198]
[1768830897931,0.010748,93092.0,93058.0,0.15963198]
[1768830898150,0.010748,93092.0,93070.0,0.0694311]
[1768830898151,0.02337247,93079.0,93070.0,0.0694311]
[1768830898333,0.02337247,93078.0,93067.0,0.0694311]
[1768830898534,0.010749,93076.0,93063.0,0.0694311]
[1768830898738,0.02337247,93075.0,93063.0,0.0694311]
[1768830898938,0.02337247,93074.0,93063.0,0.0694311]
[1768830899137,0.18031258,93073.0,93063.0,0.0694311]
[1768830899946,0.010749,93076.0,93063.0,0.0694311]
[1768830900149,0.0233732,93075.0,93063.0,0.0694311]
[1768830900452,0.010749,93076.0,93063.0,0.0694311]
[1768830900644,0.02337269,93075.0,93063.0,0.0694311]
[1768830900845,0.010749,93078.0,93063.0,0.0694311]
[1768830901049,0.02337269,93077.0,93063.0,0.0694311]
[1768830901250,0.02337269,93076.0,93063.0,0.0694311]
[1768830901450,0.02337269,93075.0,93064.0,0.0694311]
[1768830901654,0.18031258,93080.0,93065.0,0.0694311]
[1768830901854,0.02337226,93079.0,93065.0,0.0694311]
[1768830902043,0.02337226,93078.0,93065.0,0.0694311]
[1768830902242,0.02337226,93077.0,93065.0,0.0694311]
[1768830902442,0.02337226,93076.0,93065.0,0.0694311]
[1768830902745,0.02337226,93075.0,93065.0,0.0694311]
[1768830902949,0.19106158,93080.0,93065.0,0.0694311]
[1768830903143,0.02337188,93079.0,93065.0,0.0694311]
[1768830903344,0.02337188,93078.0,93065.0,0.0694311]
[1768830903642,0.02337188,93077.0,93065.0,0.0694311]
[1768830903843,0.02337188,93076.0,93065.0,0.0694311]
[1768830904145,0.02337188,93075.0,93065.0,0.0694311]
[1768830904343,0.19106158,93080.0,93065.0,0.0694311]
[1768830904543,0.0233713,93079.0,93065.0,0.0694311]
[1768830904750,0.0233713,93078.0,93065.0,0.17525068]
[1768830905043,0.0233713,93077.0,93067.0,0.0801811]
[1768830905243,0.0233713,93076.0,93067.0,0.0801811]
[1768830905550,0.0233713,93075.0,93067.0,0.0694311]
[1768830905743,0.010749,93079.0,93067.0,0.0694311]
[1768830905942,0.02354517,93078.0,93067.0,0.0694311]
[1768830906142,0.02354517,93077.0,93067.0,0.0694311]
[1768830906342,0.02354517,93076.0,93067.0,0.0694311]
[1768830906639,0.02354517,93075.0,93067.0,0.0694311]
[1768830906844,0.18031258,93080.0,93067.0,0.0694311]
[1768830907037,0.02354434,93079.0,93067.0,0.0694311]
[1768830907238,0.02354434,93078.0,93067.0,0.0694311]
[1768830907442,0.02354434,93077.0,93067.0,0.0694311]
[1768830907752,0.02354434,93076.0,93067.0,0.0694311]
[1768830907954,0.02354434,93075.0,93067.0,0.0694311]
[1768830908158,0.19106158,93080.0,93067.0,0.0694311]
[1768830908355,0.02354337,93079.0,93067.0,0.0694311]
[1768830908653,0.02354337,93078.0,93067.0,0.0694311]
[1768830908855,0.02354337,93077.0,93067.0,0.0694311]
[1768830909048,0.02354337,93076.0,93067.0,0.0694311]
[1768830909245,0.02354337,93075.0,93067.0,0.0694311]
[1768830909446,0.18031258,93080.0,93067.0,0.0694311]
[1768830909753,0.02354329,93079.0,93067.0,0.0694311]
[1768830910054,0.02354329,93078.0,93067.0,0.0694311]
[1768830910251,0.02354329,93077.0,93067.0,0.0694311]
[1768830910450,0.02354329,93076.0,93067.0,0.0694311]
[1768830910754,0.02354329,93075.0,93067.0,0.0694311]
[1768830910954,0.18031258,93080.0,93067.0,0.0694311]
[1768830911158,0.02354315,93079.0,93067.0,0.0694311]
[1768830911350,0.02354315,93078.0,93067.0,0.0694311]
[1768830911551,0.02354315,93077.0,93067.0,0.0694311]
[1768830911751,0.02354315,93076.0,93067.0,0.0694311]
[1768830912050,0.02354315,93075.0,93067.0,0.0694311]
[1768830912250,0.18031258,93080.0,93067.0,0.0694311]
[1768830912452,0.02354257,93079.0,93067.0,0.0694311]
[1768830912657,0.02354257,93078.0,93067.0,0.0694311]
[1768830912850,0.02354257,93077.0,93067.0,0.0694311]
[1768830913050,0.02354257,93076.0,93067.0,0.0694311]
[1768830913252,0.18031258,93080.0,93067.0,0.0694311]
[1768830913452,0.02354264,93079.0,93067.0,0.0694311]
[1768830913652,0.02354264,93078.0,93067.0,0.0694311]
[1768830913853,0.02354264,93077.0,93068.0,0.0694311]
[1768830914057,0.02354264,93076.0,93068.0,0.0694311]
[1768830914249,0.02354264,93075.0,93068.0,0.0694311]
[1768830914451,0.18031258,93080.0,93068.0,0.0694311]
[1768830914652,0.02354263,93079.0,93068.0,0.0694311]
[1768830914858,0.02354263,93078.0,93068.0,0.0694311]
[1768830915054,0.02354263,93077.0,93068.0,0.0694311]
[1768830915256,0.02354263,93076.0,93068.0,0.0694311]
[1768830915557,0.02354263,93075.0,93068.0,0.0694311]
[1768830915762,0.19106158,93080.0,93068.0,0.0694311]
[1768830916059,0.02354252,93079.0,93068.0,0.0694311]
[1768830916356,0.19106158,93080.0,93068.0,0.0694311]
[1768830916357,0.02354252,93078.0,93068.0,0.0694311]
[1768830916557,0.02354252,93077.0,93068.0,0.0694311]
[1768830916758,0.02354252,93076.0,93068.0,0.0694311]
[1768830916959,0.02354252,93075.0,93067.0,0.09506958]
[1768830917158,0.19106158,93080.0,93067.0,0.09506958]
[1768830917368,0.02354271,93079.0,93067.0,0.09506958]
[1768830917659,0.010749,93077.0,93064.0,0.0694311]
[1768830917855,0.02354271,93076.0,93064.0,0.0694311]
[1768830918056,0.02354271,93075.0,93064.0,0.0694311]
[1768830918362,0.010749,93079.0,93064.0,0.0694311]
[1768830918565,0.02354282,93078.0,93064.0,0.0694311]
[1768830918764,0.02354282,93077.0,93064.0,0.0694311]
[1768830918959,0.02354282,93076.0,93064.0,0.0694311]
[1768830919160,0.02354282,93075.0,93064.0,0.0694311]
[1768830919459,0.010749,93079.0,93064.0,0.0694311]
[1768830919664,0.02354299,93078.0,93064.0,0.0694311]
[1768830919866,0.02354299,93077.0,93064.0,0.0694311]
[1768830920066,0.02354299,93076.0,93064.0,0.0694311]
[1768830920261,0.02354299,93075.0,93064.0,0.0694311]
[1768830920462,0.010749,93079.0,93064.0,0.0694311]
[1768830920662,0.02354321,93078.0,93064.0,0.0694311]
[1768830920862,0.02354321,93077.0,93064.0,0.0694311]
[1768830921063,0.02354321,93076.0,93064.0,0.0694311]
[1768830921262,0.02354321,93075.0,93064.0,0.0694311]
[1768830921463,0.18031258,93080.0,93064.0,0.0694311]
[1768830921663,0.02354337,93079.0,93064.0,0.0694311]
[1768830921963,0.010749,93077.0,93064.0,0.0694311]
[1768830922164,0.02354337,93076.0,93064.0,0.0694311]
[1768830922368,0.02354337,93075.0,93064.0,0.0694311]
[1768830922564,0.010749,93077.0,93064.0,0.0694311]
[1768830922763,0.02354364,93076.0,93064.0,0.0694311]
[1768830922964,0.02354364,93075.0,93064.0,0.0694311]
[1768830923163,0.010749,93077.0,93064.0,0.0694311]
[1768830923369,0.023544,93076.0,93065.0,0.06409456]
[1768830923562,0.023544,93075.0,93065.0,0.06409456]
[1768830923868,0.19106158,93080.0,93065.0,0.06409456]
[1768830924071,0.02354408,93079.0,93065.0,0.06409456]
[1768830924270,0.02354408,93078.0,93065.0,0.06409456]
[1768830924466,0.02354408,93077.0,93065.0,0.06409456]
[1768830924666,0.02354408,93076.0,93065.0,0.06409456]
[1768830924872,0.02354408,93075.0,93065.0,0.06409456]
[1768830925171,0.02354495,93074.0,93065.0,0.06409456]
[1768830925470,0.19106158,93080.0,93065.0,0.06409456]
[1768830925771,0.02354505,93079.0,93065.0,0.06409456]
[1768830925965,0.02354505,93078.0,93065.0,0.07484456]
[1768830926165,0.02354505,93077.0,93065.0,0.17204103]
[1768830926365,0.02354505,93076.0,93066.0,0.06409456]
[1768830926566,0.02354505,93075.0,93066.0,0.06409456]
[1768830926767,0.18031258,93080.0,93066.0,0.06409456]
[1768830926967,0.0235459,93079.0,93066.0,0.06409456]
[1768830927167,0.0235459,93078.0,93066.0,0.06409456]
[1768830927368,0.0235459,93077.0,93066.0,0.06409456]
[1768830927573,0.0235459,93076.0,93066.0,0.06409456]
[1768830927872,0.0235459,93075.0,93066.0,0.06409456]
[1768830928066,0.0235459,93074.0,93067.0,0.06409456]
[1768830928267,0.19106158,93080.0,93067.0,0.06409456]
[1768830928468,0.02354709,93079.0,93067.0,0.06409456]
[1768830928673,0.02354709,93078.0,93067.0,0.06409456]
[1768830928970,0.02354709,93077.0,93067.0,0.06409456]
[1768830929171,0.02354709,93076.0,93067.0,0.06409456]
[1768830929373,0.02354709,93075.0,93067.0,0.06409456]
[1768830929574,0.18031258,93080.0,93067.0,0.06409456]
[1768830929873,0.0235472,93079.0,93067.0,0.06409456]
[1768830930175,0.0235472,93078.0,93067.0,0.06409456]
[1768830930369,0.0235472,93077.0,93067.0,0.06409456]
[1768830930568,0.0235472,93076.0,93067.0,0.06409456]
[1768830930769,0.0235472,93075.0,93067.0,0.06409456]
[1768830931073,0.02354723,93074.0,93067.0,0.06409456]
[1768830931272,0.18031258,93080.0,93067.0,0.06409456]
[1768830931473,0.02354724,93079.0,93067.0,0.06409456]
[1768830931773,0.02354724,93078.0,93067.0,0.06409456]
[1768830931972,0.02354724,93077.0,93067.0,0.06409456]
[1768830932172,0.02354724,93076.0,93067.0,0.06409456]
[1768830932372,0.02354724,93075.0,93067.0,0.06409456]
[1768830932573,0.02354724,93074.0,93067.0,0.06409456]
[1768830932775,0.18031258,93080.0,93067.0,0.06409456]
[1768830933076,0.02354725,93079.0,93067.0,0.06409456]
[1768830933270,0.02354725,93078.0,93067.0,0.06409456]
[1768830933470,0.02354725,93077.0,93067.0,0.06409456]
[1768830933671,0.02354725,93076.0,93067.0,0.06409456]
[1768830933875,0.010749,93079.0,93067.0,0.06409456]
[1768830933876,0.02354725,93075.0,93067.0,0.06409456]
[1768830934173,0.02354725,93074.0,93067.0,0.06409456]
[1768830934375,0.010749,93079.0,93067.0,0.06409456]
[1768830934574,0.02354725,93078.0,93067.0,0.06409456]
[1768830934875,0.02354725,93077.0,93067.0,0.06409456]
[1768830935176,0.02354725,93076.0,93067.0,0.06409456]
[1768830935377,0.02354725,93075.0,93067.0,0.06409456]
[1768830935575,0.02354725,93074.0,93067.0,0.06409456]
[1768830935778,0.18031258,93080.0,93067.0,0.06409456]
[1768830935977,0.02362322,93079.0,93067.0,0.06409456]
[1768830936178,0.02362322,93078.0,93067.0,0.06409456]
[1768830936368,0.02362322,93077.0,93067.0,0.06409456]
[1768830936667,0.02362322,93076.0,93067.0,0.06409456]
[1768830936978,0.02362322,93075.0,93067.0,0.06409456]
[1768830937277,0.02362322,93074.0,93067.0,0.06409456]
[1768830937473,0.18031258,93080.0,93067.0,0.06409456]
[1768830937674,0.02362088,93079.0,93067.0,0.06409456]
[1768830937876,0.02362088,93078.0,93067.0,0.06409456]
[1768830938075,0.02362088,93077.0,93067.0,0.06409456]
[1768830938372,0.02362088,93076.0,93067.0,0.06409456]
[1768830938578,0.02362088,93075.0,93067.0,0.06409456]
[1768830938773,0.02362088,93074.0,93067.0,0.06409456]
[1768830938969,0.18031258,93080.0,93067.0,0.06409456]
[1768830939171,0.02362098,93079.0,93067.0,0.06409456]
[1768830939376,0.02362098,93078.0,93067.0,0.06409456]
[1768830939580,0.02362098,93077.0,93067.0,0.06409456]
[1768830939780,0.02362098,93076.0,93067.0,0.06409456]
[1768830939982,0.02362098,93075.0,93067.0,0.06409456]
[1768830940281,0.02362098,93074.0,93067.0,0.06409456]
[1768830940484,0.18031258,93080.0,93067.0,0.06409456]
[1768830940981,0.010749,93083.0,93067.0,0.06409456]
[1768830943584,0.010749,93082.0,93067.0,0.06409456]
[1768830944082,0.010749,93081.0,93067.0,0.06409456]
[1768830945985,0.010749,93079.0,93067.0,0.06409456]
[1768830947285,0.010749,93081.0,93067.0,0.06409456]
[1768830949886,0.18,93082.0,93067.0,0.06409456]
[1768830950885,0.18,93082.0,93071.0,0.06440622]
[1768830951081,0.18,93082.0,93072.0,0.06440622]
[1768830951389,0.09912346,93084.0,93072.0,0.06440622]
[1768830952389,0.02351885,93083.0,93072.0,0.06440622]
[1768830952687,0.09912346,93084.0,93071.0,0.09793923]
[1768830952688,0.03426785,93082.0,93071.0,0.09793923]
[1768830952889,0.02351885,93081.0,93071.0,0.09793923]
[1768830953090,0.02351885,93080.0,93071.0,0.09793923]
[1768830953383,0.02351885,93079.0,93071.0,0.09793923]
[1768830953588,0.02351885,93078.0,93071.0,0.09793923]
[1768830953893,0.09912346,93084.0,93071.0,0.09793923]
[1768830958004,0.09912346,93084.0,93071.0,0.16746917]
[1768830958303,0.01311134,93089.0,93075.0,0.06952994]
[1768830958605,0.107508,93088.0,93076.0,0.06952994]
[1768830958805,0.010748,93086.0,93076.0,0.06952994]
[1768830959300,0.010748,93086.0,93075.0,0.09690925]
[1768830959806,0.09676,93088.0,93073.0,0.06969107]
[1768830960007,0.010748,93085.0,93073.0,0.06969107]
[1768830960207,0.107508,93088.0,93073.0,0.06969107]
[1768830965709,0.02341488,93087.0,93073.0,0.06969107]
[1768830965909,0.02341488,93086.0,93073.0,0.06969107]
[1768830966111,0.02341488,93085.0,93073.0,0.16660032]
[1768830966304,0.02341488,93084.0,93074.0,0.06952994]
[1768830966505,0.02341488,93083.0,93074.0,0.06952994]
[1768830966705,0.02341488,93082.0,93074.0,0.06952994]
[1768830966909,0.02341488,93081.0,93074.0,0.06952994]
[1768830967113,0.02341488,93080.0,93074.0,0.06952994]
[1768830967413,0.09676,93088.0,93075.0,0.09690925]
[1768830970610,0.09676,93088.0,93075.0,0.16643919]
[1768830970818,0.09676,93088.0,93076.0,0.06952994]
[1768830972018,0.107508,93088.0,93075.0,0.09690925]
[1768830973519,0.09676,93088.0,93073.0,0.00016113]
[1768830974321,0.010748,93087.0,93073.0,0.00016113]
[1768830979324,0.02319852,93086.0,93073.0,0.00016113]
[1768830979522,0.02319852,93085.0,93073.0,0.00016113]
[1768830979722,0.02319852,93084.0,93073.0,0.00016113]
[1768830979919,0.02319852,93083.0,93073.0,0.00016113]
[1768830980121,0.02319852,93082.0,93073.0,0.00016113]
[1768830980314,0.02319852,93081.0,93073.0,0.00016113]
[1768830980615,0.02319852,93080.0,93073.0,0.00016113]
[1768830980810,0.010748,93087.0,93073.0,0.00016113]
[1768830982926,0.09676,93088.0,93073.0,0.00016113]
[1768830985228,0.010748,93087.0,93073.0,0.00016113]
[1768830986727,0.010748,93086.0,93073.0,0.00016113]
[1768830989127,0.010748,93085.0,93073.0,0.00016113]
[1768830989333,0.06185261,93083.0,93064.0,0.09912396]
[1768830989529,0.06185261,93082.0,93064.0,0.09912396]
[1768830990327,0.06185261,93082.0,93064.0,0.10987496]
[1768830990528,0.06185261,93082.0,93065.0,0.01075]
[1768830991530,0.07260161,93082.0,93064.0,0.09912396]
[1768830991834,0.06185261,93082.0,93064.0,0.09912396]
[1768830992033,0.010749,93080.0,93064.0,0.09912396]
[1768830992746,0.02310408,93079.0,93064.0,0.09912396]
[1768830992931,0.02310408,93078.0,93064.0,0.09912396]
[1768830993131,0.07260161,93082.0,93064.0,0.09912396]
[1768830993324,0.02310408,93081.0,93064.0,0.09912396]
[1768830993528,0.02310408,93080.0,93064.0,0.09912396]
[1768830993728,0.02310408,93079.0,93064.0,0.09912396]
[1768830993935,0.02310408,93078.0,93064.0,0.09912396]
[1768830994226,0.07260161,93082.0,93064.0,0.00236396]
[1768830994528,0.02310406,93081.0,93064.0,0.00236396]
[1768830994726,0.02310406,93080.0,93064.0,0.01311496]
[1768830994926,0.02310406,93079.0,93064.0,0.01311496]
[1768830995222,0.02310406,93078.0,93064.0,0.01311496]
[1768830995521,0.06185261,93082.0,93064.0,0.01311496]
[1768830995725,0.02310399,93081.0,93064.0,0.01311496]
[1768830995934,0.02310399,93080.0,93064.0,0.01311496]
[1768830996135,0.02310399,93079.0,93064.0,0.01311496]
[1768830996334,0.02310399,93078.0,93064.0,0.01311496]
[1768830996535,0.06185261,93082.0,93064.0,0.01311496]
[1768830996836,0.0230169,93081.0,93064.0,0.01311496]
[1768830997035,0.0230169,93080.0,93064.0,0.01311496]
[1768830997233,0.0230169,93079.0,93064.0,0.01311496]
[1768830997435,0.0230169,93078.0,93064.0,0.01311496]
[1768830997635,0.06185261,93082.0,93064.0,0.01311496]
[1768830997836,0.02301683,93081.0,93064.0,0.01311496]
[1768830998137,0.02301683,93080.0,93064.0,0.01311496]
[1768830998437,0.02301683,93079.0,93064.0,0.01311496]
[1768830998737,0.02301683,93078.0,93064.0,0.01311496]
[1768830998938,0.06185261,93082.0,93064.0,0.01311496]
[1768830999139,0.02301677,93081.0,93064.0,0.01311496]
[1768830999338,0.02301677,93080.0,93064.0,0.01311496]
[1768830999541,0.02301677,93079.0,93067.0,0.01075]
[1768830999840,0.02301677,93078.0,93067.0,0.01075]
[1768831000138,0.06185261,93082.0,93067.0,0.01075]
[1768831000340,0.02301671,93081.0,93067.0,0.01075]
[1768831000638,0.02301671,93080.0,93067.0,0.01075]
[1768831000941,0.02301671,93079.0,93067.0,0.01075]
[1768831001238,0.02301671,93078.0,93067.0,0.01075]
[1768831001441,0.18027124,93080.0,93067.0,0.01075]
[1768831001740,0.02301659,93079.0,93067.0,0.01075]
[1768831001940,0.02301659,93078.0,93067.0,0.01075]
[1768831002143,0.18027124,93080.0,93067.0,0.01075]
[1768831002441,0.02301656,93079.0,93065.0,0.010751]
[1768831002638,0.02301656,93078.0,93065.0,0.010751]
[1768831002939,0.18027124,93080.0,93065.0,0.010751]